Workbook

Sheet Blad1
A1: Damer 70 - Div 1
A3: Placering | B3: Klubb | C3: Omgång 1 | D3: Omgång 2 | E3: Omgång 3 | F3: Omgång 4 | G3: Totalt
C4: Skaftö | D4: Tjörn | E4: Holma-Stångenäs | F4: Mellerud
C5: (Fyrboll) | D5: (Fyrboll) | E5: (Singel) | F5: (Singel)
C6: 2/2 räknas | D6: 2/2 räknas | E6: 3/4 räknas | F6: 3/4 räknas
A7: =RANK(G7,G$7:G$14,1) -> 1 | B7: Lyckorna | C7: 167 | D7: 168 | E7: 271 | F7: 275 | G7: =C7+D7+E7+F7 -> 881
A8: =RANK(G8,G$7:G$14,1) -> 2 | B8: Orust | C8: 164 | D8: 180 | E8: 291 | F8: 290 | G8: =C8+D8+E8+F8 -> 925
A9: 3 | B9: Fjällbacka | C9: 176 | D9: 182 | E9: 282 | F9: 287 | G9: =C9+D9+E9+F9 -> 927
A10: 4 | B10: Skaftö | C10: 173 | D10: 194 | E10: 275 | F10: 291 | G10: =C10+D10+E10+F10 -> 933
A11: 5 | B11: Sotenäs | C11: 173 | D11: 180 | E11: 289 | F11: 303 | G11: =C11+D11+E11+F11 -> 945
A12: 6 | B12: Stenungsund | C12: 182 | D12: 173 | E12: 288 | F12: 303 | G12: =C12+D12+E12+F12 -> 946
A13: 7 | B13: Tjörn | C13: 182 | D13: 180 | E13: 291 | F13: 313 | G13: =C13+D13+E13+F13 -> 966
A14: 8 | B14: Torreby | C14: 190 | D14: 196 | E14: 303 | F14: 336 | G14: =C14+D14+E14+F14 -> 1025
A16: Damer 70 - Div 2
A18: Placering | B18: Klubb | C18: Omgång 1 | D18: Omgång 2 | E18: Omgång 3 | F18: Omgång 4 | G18: Totalt
C19: Skaftö | D19: Tjörn | E19: Holma-Stångenäs | F19: Mellerud
C20: (Fyrboll) | D20: (Fyrboll) | E20: (Singel) | F20: (Singel)
C21: 2/2 räknas | D21: 2/2 räknas | E21: 3/4 räknas | F21: 3/4 räknas
A22: =RANK(G22,G$22:G$25,1) -> 1 | B22: Holma Stångenäs | C22: 178 | D22: 196 | E22: 319 | F22: 335 | G22: =C22+D22+E22+F22 -> 1028
A23: =RANK(G23,G$22:G$25,1) -> 2 | B23: Uddevalla | C23: 185 | D23: 190 | E23: 325 | F23: 336 | G23: =C23+D23+E23+F23 -> 1036
A24: =RANK(G24,G$22:G$25,1) -> 3 | B24: Allmag | C24: 197 | D24: 203 | E24: 334 | F24: 329 | G24: =C24+D24+E24+F24 -> 1063
A25: =RANK(G25,G$22:G$25,1) -> 4 | B25: Mjölkeröd | C25: 193 | D25: 199 | E25: 312 | F25: 372 | G25: =C25+D25+E25+F25 -> 1076
